bitfinex/quotes_SOLUSD_20250624
["timestamp","ask_amount","ask_price","bid_price","bid_amount"]
[1750801853070,1.37400384,145.56,145.52,4.14561111]
[1750801853362,1.37400384,145.56,145.52,30.14561111]
[1750801854267,18.64964886,145.59,145.52,26.0]
[1750801854445,6.49024479,145.57,145.52,32.49024479]
[1750801856352,1.37400384,145.56,145.52,6.49024479]
[1750801857053,1.37400384,145.56,145.52,244.09024479]
[1750801857873,1.37400384,145.56,145.52,95.19024479]
[1750801858278,6.49024479,145.56,145.52,95.19024479]
[1750801858450,6.49024479,145.56,145.52,88.7]
[1750801858774,6.49024479,145.56,145.52,95.19024479]
[1750801860146,6.49024479,145.55,145.52,88.7]
[1750801860368,6.49024479,145.54,145.51,3.38891573]
[1750801860577,6.49024479,145.53,145.48,88.7]
[1750801860879,6.49024479,145.53,145.48,6.49024479]
[1750801861262,6.49024479,145.52,145.48,6.49024479]
[1750801861784,6.49024479,145.52,145.47,95.57391876]
[1750801862080,6.49024479,145.52,145.48,6.49024479]
[1750801862267,7.86463331,145.52,145.48,6.49024479]
[1750801863087,6.49024479,145.51,145.46,9.8617705]
[1750801863257,6.49024479,145.5,145.45,95.19024479]
[1750801863457,6.49024479,145.5,145.45,6.49024479]
[1750801863673,6.49024479,145.5,145.45,32.49024479]
[1750801864679,1.37466492,145.49,145.45,32.49024479]
[1750801865178,7.86490971,145.49,145.45,32.49024479]
[1750801865960,1.37466492,145.49,145.45,32.49024479]
[1750801867266,1.37466492,145.49,145.45,35.91391036]
[1750801869969,7.86490971,145.49,145.45,29.42366557]
[1750801870275,7.86490971,145.49,145.45,3.42366557]
[1750801870584,6.12,145.48,145.44,6.49024479]
[1750801870890,6.12,145.48,145.44,9.8464309]
[1750801871074,7.49481635,145.48,145.44,9.8464309]
[1750801879980,6.12,145.51,145.47,6.49024479]
[1750801880582,7.49450252,145.51,145.47,6.49024479]
[1750801883100,7.49450252,145.51,145.46,13.3647397]
[1750801883399,13.98474731,145.51,145.47,1.6]
[1750801883583,6.12,145.51,145.47,8.47405234]
[1750801883789,7.86466828,145.52,145.47,14.96429713]
[1750801883996,13.98466828,145.52,145.47,14.96429713]
[1750801885984,7.86466828,145.52,145.47,14.96429713]
[1750801886185,13.96466828,145.52,145.47,14.96429713]
[1750801888101,13.96453187,145.53,145.48,6.49024479]
[1750801888883,13.96453187,145.53,145.48,13.36402164]
[1750801890206,13.96453187,145.53,145.48,6.87377685]
[1750801890404,13.96453187,145.53,145.48,13.36402164]
[1750801894204,11.63028933,145.53,145.48,6.87377685]
[1750801897593,4.15600225,145.52,145.48,6.87377685]
[1750801898917,5.53040918,145.52,145.48,6.87377685]
[1750801903719,5.53040918,145.52,145.44,21.23265756]
[1750801903720,3.4514,145.47,145.41,5.60569781]
[1750801903925,5.53066717,145.49,145.41,4.15600225]
[1750801904136,5.53066717,145.49,145.43,26.0]
[1750801904629,4.15600225,145.48,145.4,26.0]
[1750801904925,4.15600225,145.48,145.37,0.68741709]
[1750801904926,4.15600225,145.46,145.37,0.68741709]
[1750801905131,4.15600225,145.45,145.39,26.0]
[1750801905713,24.68804886,145.38,145.35,3.45893532]
[1750801905927,4.15600225,145.37,145.35,3.45893532]
[1750801906230,6.5070031,145.38,145.35,3.45893532]
[1750801906522,6.5070031,145.38,145.31,6.5070031]
[1750801906729,6.5070031,145.38,145.31,7.19490101]
[1750801907029,6.5070031,145.38,145.32,6.5070031]
[1750801907233,7.88261352,145.39,145.33,6.5070031]
[1750801907399,1.37561042,145.39,145.34,6.5070031]
[1750801908117,1.37561042,145.39,145.34,39.38736306]
[1750801909220,7.88251891,145.4,145.34,39.38736306]
[1750801909620,1.37551581,145.4,145.34,39.38736306]
[1750801912010,7.88251891,145.4,145.34,39.38736306]
[1750801913007,7.88251891,145.4,145.35,6.5070031]
[1750801915837,7.88251891,145.4,145.34,39.38736306]
[1750801917446,7.88251891,145.4,145.35,6.5070031]
[1750801917649,7.88251891,145.4,145.34,32.88035996]
[1750801917934,7.88251891,145.4,145.34,39.38736306]
[1750801920651,7.88251891,145.4,145.34,32.5070031]
[1750801922045,7.88251891,145.4,145.34,26.0]
[1750801922251,7.88251891,145.4,145.34,32.5070031]
[1750801922950,6.5070031,145.39,145.34,32.5070031]
[1750801925049,1.37570504,145.38,145.34,32.5070031]
[1750801926352,1.37570504,145.38,145.34,118.86352485]
[1750801928153,1.37570504,145.38,145.34,114.7]
[1750801928458,1.37570504,145.38,145.34,118.86352485]
[1750801929730,1.37570504,145.38,145.34,114.7]
[1750801929931,1.37570504,145.38,145.34,118.86352485]
[1750801930437,1.37570504,145.38,145.34,114.7]
[1750801930642,1.33356296,145.38,145.34,118.86352485]
[1750801932059,5.49708781,145.38,145.34,88.7]
[1750801935059,4.16352485,145.37,145.34,88.7]
[1750801936260,1.37589433,145.36,145.34,88.7]
[1750801942650,1.37589433,145.36,145.25,6.5338]
[1750801942651,59.2091627,145.35,145.2,304.4568696]
[1750801942951,4.16352485,145.29,145.23,4.16352485]
[1750801943264,4.16352485,145.29,145.24,26.0]
[1750801943459,4.16352485,145.29,145.23,4.16352485]
[1750801943763,4.16352485,145.29,145.24,26.0]
[1750801943946,4.16352485,145.29,145.25,6.88468158]
[1750801944261,6.51427124,145.29,145.25,6.88468158]
[1750801944459,6.51427124,145.28,145.24,32.88510569]
[1750801945048,6.51427124,145.28,145.22,6.51427124]
[1750801945252,6.51427124,145.28,145.23,6.88550584]
[1750801945565,6.51427124,145.27,145.23,26.0]
[1750801945944,7.89103726,145.27,145.23,26.0]
[1750801947066,6.51427124,145.26,145.23,26.0]
[1750801947571,7.89103726,145.27,145.23,26.0]
[1750801947866,7.89103726,145.27,145.22,6.88605091]
[1750801950674,7.89092322,145.28,145.22,13.40032215]
[1750801951552,7.89092322,145.28,145.22,102.10032215]
[1750801952266,7.89108455,145.27,145.22,102.10032215]
[1750801953353,7.89108455,145.27,145.22,95.58605091]
[1750801954950,7.89108455,145.27,145.22,102.10032215]
[1750801955567,7.89092322,145.28,145.22,102.10032215]
[1750801956572,7.89092322,145.28,145.22,95.58605091]
[1750801956769,7.89092322,145.28,145.22,102.10032215]
[1750801962658,7.89092322,145.28,145.23,6.51427124]
[1750801962870,14.27087381,145.29,145.24,6.51427124]
[1750801963075,14.27087381,145.29,145.24,95.21427124]
[1750801964072,7.89087381,145.29,145.24,102.09926276]
[1750801964373,5.54567611,145.29,145.24,99.75406506]
[1750801965275,5.54567611,145.29,145.24,95.58499152]
[1750801965669,4.16907354,145.28,145.24,88.7]
[1750801966271,4.16907354,145.28,145.22,11.05486784]
[1750801966854,4.16907354,145.28,145.22,6.8857943]
[1750801967053,4.16907354,145.28,145.22,11.05486784]
[1750801967260,1.37674674,145.27,145.22,11.05486784]
[1750801968082,4.16907354,145.28,145.22,11.05486784]
[1750801968373,5.54571817,145.29,145.23,4.16907354]
[1750801969374,5.54571817,145.29,145.24,6.8851556]
[1750801971582,4.16907354,145.27,145.22,6.88588185]
[1750801972485,4.16907354,145.26,145.22,6.88588185]
[1750801972676,5.54590132,145.27,145.22,6.88588185]
[1750801975180,1.37682778,145.27,145.22,6.88588185]
[1750801982292,1.37682778,145.27,145.21,4.16907354]
[1750801982994,5.54590132,145.27,145.21,4.16907354]
[1750801983692,5.54590132,145.27,145.22,6.88610384]
[1750801983996,1.37682778,145.27,145.22,6.88610384]
[1750801984798,1.37682778,145.27,145.21,6.88657805]
[1750801985003,1.37682778,145.27,145.21,11.05565159]
[1750801987875,5.54572341,145.29,145.23,11.05470323]
[1750801988197,1.37664987,145.29,145.23,11.05470323]
[1750801988382,9.32074855,145.32,145.25,4.16907354]
[1750801988584,4.16907354,145.32,145.26,4.16907354]
[1750801988785,35.3673224,145.33,145.26,4.16907354]
[1750801989580,1.37629802,145.32,145.27,6.88373373]
[1750801990190,5.15167501,145.34,145.27,11.05280727]
[1750801990389,4.16907354,145.35,145.29,4.16907354]
[1750801991285,5.54509792,145.35,145.3,6.88231245]
[1750801992992,5.54496787,145.36,145.3,6.88231245]
[1750801993381,4.16907354,145.35,145.3,6.88231245]
[1750801994402,6.50915715,145.36,145.3,6.50915715]
[1750801995714,6.50915715,145.36,145.31,6.88183882]
[1750801995890,6.50915715,145.36,145.31,95.58183882]
[1750801998684,7.88505492,145.36,145.31,95.58183882]
[1750801998889,1.37589777,145.36,145.31,102.09099597]
[1750801999302,12.9331,145.37,145.31,102.09099597]
[1750801999303,20.81810017,145.37,145.31,102.09099597]
[1750801999503,6.50915715,145.35,145.31,88.7]
[1750801999685,6.50915715,145.34,145.31,88.7]
[1750802001113,1.37617835,145.33,145.31,88.7]
[1750802004018,1.37617835,145.33,145.29,26.0]
[1750802006419,1.37617835,145.33,145.28,13.39212982]
[1750802006722,7.8853355,145.33,145.28,13.39212982]
[1750802008921,7.8853355,145.33,145.29,1.6]
[1750802009425,6.50915715,145.32,145.26,40.99832069]
[1750802010223,7.8853355,145.33,145.27,6.50915715]
[1750802012726,6.50915715,145.33,145.27,13.39274087]
[1750802013217,6.50915715,145.33,145.28,6.50915715]
[1750802013611,6.50915715,145.33,145.28,95.20915715]
[1750802014028,1.37627305,145.32,145.28,95.20915715]
[1750802014208,1.37627305,145.32,145.28,92.86708808]
[1750802015032,1.37608366,145.34,145.28,99.75030174]
[1750802015208,5.54317174,145.34,145.28,99.75030174]
[1750802017733,5.54317174,145.34,145.29,11.04979366]
[1750802017933,5.54317174,145.34,145.29,99.74979366]
[1750802019030,5.54317174,145.34,145.3,1.6]
[1750802021236,1.37608366,145.34,145.3,1.6]
[1750802021939,1.37608366,145.34,145.29,99.74979366]
[1750802022241,5.54317174,145.34,145.29,95.58270558]
[1750802022830,1.37608366,145.34,145.29,95.58270558]
[1750802023030,5.54317174,145.34,145.29,95.58270558]
[1750802029050,5.54317174,145.34,145.3,1.6]
[1750802030748,1.37608366,145.34,145.3,1.6]
[1750802038152,4.16708808,145.32,145.3,1.6]
[1750802038352,4.16708808,145.31,145.29,88.7]
[1750802038557,4.16708808,145.31,145.26,121.58392732]
[1750802040035,4.16708808,145.31,145.27,1.6]
[1750802041758,5.54345728,145.31,145.27,1.6]
[1750802042765,4.16708808,145.3,145.27,8.48366631]
[1750802042936,5.54345728,145.31,145.27,8.48366631]
[1750802043637,4.16708808,145.3,145.27,8.48366631]
[1750802047348,5.54345728,145.31,145.27,8.48366631]
[1750802048969,1.3763692,145.31,145.27,8.48366631]
[1750802050459,7.39421154,145.32,145.27,8.48366631]
[1750802055471,7.39419356,145.32,145.27,8.48366631]
[1750802057949,6.0179,145.32,145.27,97.18366631]
[1750802058265,1.37621808,145.33,145.27,97.18366631]
[1750802058437,1.37621808,145.33,145.27,101.35075439]
[1750802059070,1.37608366,145.34,145.27,101.35075439]
[1750802059573,6.52963181,145.34,145.27,101.35075439]
[1750802059757,1.37608366,145.34,145.27,101.35075439]
[1750802060567,1.37608366,145.34,145.28,11.04988524]
[1750802060769,12.70919598,145.35,145.29,4.16708808]
[1750802060977,7.55602812,145.35,145.29,4.16708808]
[1750802061677,7.55602812,145.35,145.3,6.88231245]
[1750802061856,7.55602812,145.35,145.3,95.58231245]
[1750802062662,7.55602812,145.35,145.3,99.74940053]
[1750802062858,7.55602812,145.35,145.3,95.58231245]
[1750802064371,6.44100445,145.43,145.35,18.64964886]
[1750802064551,5.14892985,145.44,145.39,4.16708808]
[1750802064757,9.31601793,145.45,145.36,2.29784322]
[1750802064956,4.16708808,145.43,145.36,31.77728808]
[1750802065170,4.16708808,145.43,145.37,4.16708808]
[1750802065673,4.16708808,145.44,145.38,4.16708808]
[1750802066373,4.16708808,145.44,145.39,6.87805213]
[1750802066570,1.37516049,145.44,145.39,6.87805213]
[1750802066778,5.54215,145.45,145.39,11.04514021]
[1750802066984,1.37506192,145.45,145.39,11.04514021]
[1750802067274,5.54215,145.45,145.39,11.04514021]
[1750802067862,4.16708808,145.45,145.39,11.04514021]
[1750802068063,4.16708808,145.43,145.37,4.16708808]
[1750802068271,18.64964886,145.45,145.36,40.9928357]
[1750802068272,6.50334862,145.42,145.36,40.9928357]
[1750802068470,1.37542122,145.41,145.36,34.11354862]
[1750802069980,1.37542122,145.41,145.36,40.99301755]
[1750802070859,1.37542122,145.41,145.36,122.81354862]
[1750802071573,1.37542122,145.41,145.37,6.50334862]
[1750802072256,6.50334862,145.43,145.37,6.50334862]
[1750802074373,8.0202,145.55,145.42,1.6583]
[1750802074562,6.50334862,145.52,145.46,6.50334862]
[1750802075281,6.50334862,145.5,145.44,6.50334862]
[1750802075480,7.87790815,145.51,145.45,6.87521485]
[1750802076180,7.87790815,145.51,145.45,13.37856347]
[1750802077184,6.50334862,145.51,145.45,13.37856347]
[1750802078884,1.37457044,145.5,145.46,6.50334862]
[1750802079866,1.37447598,145.51,145.46,6.50334862]
[1750802080574,1.37447598,145.51,145.46,13.37805793]
[1750802083475,1.37447598,145.51,145.46,102.07805793]
[1750802084970,1.37447598,145.51,145.46,95.20334862]
[1750802085166,7.8778246,145.51,145.46,88.7]
[1750802085694,7.8778246,145.51,145.45,13.37837012]
[1750802086596,6.50334862,145.52,145.46,6.50334862]
[1750802087092,6.50334862,145.51,145.45,13.37837012]
[1750802088989,1.37454068,145.51,145.46,6.50334862]
[1750802090090,1.37454068,145.51,145.46,13.37805047]
[1750802097400,1.37454068,145.51,145.46,6.50334862]
[1750802097595,1.37454068,145.51,145.47,6.50334862]
[1750802098019,1.37454068,145.51,145.46,6.50334862]
[1750802100310,1.37454068,145.51,145.46,4.15662961]
[1750802101637,4.15662961,145.51,145.46,4.15662961]
[1750802101927,4.15662961,145.51,145.47,1.6]
[1750802102302,4.15662961,145.51,145.47,90.3]
[1750802103128,1.37457044,145.5,145.47,90.3]
[1750802105604,1.37457044,145.5,145.47,1.6]
[1750802106026,1.37457044,145.5,145.46,4.15662961]
[1750802117714,1.37457044,145.5,145.47,1.6]
[1750802120043,1.37457044,145.5,145.47,90.3]
[1750802120646,1.37447598,145.51,145.47,90.3]
[1750802120836,10.68147727,145.51,145.47,90.3]
[1750802121038,5.53110559,145.51,145.47,90.3]
[1750802121626,10.68159646,145.51,145.47,90.3]
[1750802121844,5.53110559,145.51,145.47,90.3]
[1750802122046,10.68159646,145.51,145.47,90.3]
[1750802122247,5.53110559,145.51,145.47,90.3]
[1750802124643,10.68170279,145.51,145.47,90.3]
[1750802124825,5.53110559,145.51,145.47,90.3]
[1750802125027,10.68170279,145.51,145.47,90.3]
[1750802125227,5.53110559,145.51,145.47,90.3]
[1750802126755,4.15662961,145.5,145.47,90.3]
[1750802126939,4.15662961,145.5,145.47,88.7]
[1750802128725,1.37466492,145.49,145.47,88.7]
[1750802128962,1.37466492,145.49,145.45,92.85662961]
[1750802129355,1.37466492,145.49,145.46,1.6]
[1750802131890,1.37466492,145.49,145.46,90.3]
[1750802133547,10.68145175,145.49,145.46,90.3]
[1750802134459,5.53129453,145.49,145.46,90.3]
[1750802135154,5.53129453,145.49,145.46,1.6]
[1750802135758,5.53129453,145.49,145.43,30.15662961]
[1750802137780,4.15662961,145.49,145.43,30.15662961]
[1750802139162,4.15662961,145.49,145.43,4.15662961]
[1750802139485,4.15662961,145.49,145.44,1.6]
[1750802139859,1.37475941,145.48,145.44,1.6]
[1750802146760,1.37475941,145.48,145.44,90.3]
[1750802150284,1.37475941,145.48,145.44,94.45662961]
[1750802160298,1.37475941,145.48,145.44,90.3]
[1750802178613,1.37466492,145.49,145.44,90.3]
[1750802179604,5.15396922,145.48,145.44,1.6]
[1750802179909,1.37466492,145.49,145.44,1.6]
[1750802180110,5.15396098,145.48,145.44,1.6]
[1750802180483,1.37485392,145.47,145.44,1.6]
[1750802182508,1.37475941,145.48,145.44,1.6]
[1750802182706,6.52872039,145.48,145.44,1.6]
[1750802182903,1.37475941,145.48,145.44,1.6]
[1750802183105,6.52872039,145.48,145.44,1.6]
[1750802183307,1.37475941,145.48,145.44,1.6]
[1750802183485,6.52872039,145.48,145.44,1.6]
[1750802183690,1.37475941,145.48,145.44,1.6]
[1750802183890,6.52872039,145.48,145.44,1.6]
[1750802184089,1.37475941,145.48,145.44,1.6]
[1750802184309,6.52872039,145.48,145.44,1.6]
[1750802184509,1.37475941,145.48,145.44,1.6]
[1750802184709,6.52872039,145.48,145.44,1.6]
[1750802184898,14.12224854,145.48,145.44,1.6]
[1750802185105,5.15396098,145.47,145.44,1.6]
[1750802185309,8.96828756,145.48,145.44,1.6]
[1750802185697,5.15211441,145.47,145.44,1.6]
[1750802186716,1.37494843,145.46,145.44,1.6]
[1750802187216,1.37494843,145.46,145.42,92.85662961]
[1750802188801,1.37485392,145.47,145.42,92.85662961]
[1750802189393,6.52696833,145.47,145.42,92.85662961]
[1750802190214,5.53148353,145.47,145.42,92.85662961]
[1750802191901,5.53148353,145.47,145.42,4.15662961]
[1750802193509,4.15662961,145.46,145.4,6.87741064]
[1750802193713,4.15662961,145.46,145.41,4.15662961]
[1750802194726,1.37504297,145.45,145.42,1.6]
[1750802196720,5.53167258,145.45,145.42,1.6]
[1750802201205,5.53167258,145.45,145.4,4.15662961]
[1750802204434,5.53167258,145.45,145.39,4.15662961]
[1750802204640,4.15662961,145.44,145.39,4.15662961]
[1750802204821,4.15662961,145.44,145.4,1.6]
[1750802205641,1.37523207,145.43,145.4,1.6]
[1750802210338,1.37523207,145.43,145.38,4.15662961]
[1750802214847,1.37523207,145.43,145.39,1.6]
[1750802226157,1.37523207,145.43,145.39,1.6]
[1750802229557,5.53186168,145.43,145.39,1.6]
[1750802229743,1.37523207,145.43,145.39,1.6]
[1750802232254,1.37523207,145.43,145.37,4.15662961]
[1750802232255,5.53186168,145.43,145.37,4.15662961]
[1750802232442,8.96994185,145.43,145.37,4.15662961]
[1750802233068,8.96994185,145.43,145.36,88.7]
[1750802233069,5.67302961,145.42,145.36,88.7]
[1750802233240,5.67302961,145.42,145.36,92.85662961]
[1750802234972,1.37542122,145.41,145.36,4.15662961]
[1750802236961,5.53205083,145.41,145.35,7.58768162]
[1750802237167,5.53205083,145.41,145.35,4.15662961]
[1750802238042,5.53205083,145.41,145.36,1.6]
[1750802243348,5.53205083,145.41,145.35,4.15662961]
[1750802243756,1.37542122,145.41,145.35,4.15662961]
[1750802243956,5.53205083,145.41,145.35,4.15662961]
[1750802244672,8.97060388,145.41,145.35,4.15662961]
[1750802248390,10.75712961,145.4,145.36,1.6]
[1750802248755,1.37561042,145.39,145.36,1.6]
[1750802248955,1.37561042,145.39,145.34,14.43525101]
[1750802249870,1.37561042,145.39,145.34,7.55490209]
[1750802251677,5.53224003,145.39,145.33,92.85662961]
[1750802251880,5.53224003,145.39,145.33,4.15662961]
[1750802252384,5.53224003,145.39,145.33,7.64824636]
[1750802253193,5.53224003,145.39,145.34,1.6]
[1750802254071,5.53224003,145.39,145.34,5.75662961]
[1750802254754,1.37561042,145.39,145.34,5.75662961]
[1750802255176,6.4949,145.43,145.37,4.15662961]
[1750802255359,6.4949,145.43,145.38,4.15662961]
[1750802255562,4.15662961,145.44,145.39,4.15662961]
[1750802255884,1.37516703,145.44,145.39,4.15662961]
[1750802256385,12.69677214,145.45,145.4,4.15662961]
[1750802256564,7.55506266,145.45,145.4,4.15662961]
[1750802256960,6.18,145.45,145.42,4.15662961]
[1750802257275,6.18,145.45,145.42,11.03326182]
[1750802257582,1.37489713,145.47,145.42,11.03326182]
[1750802258570,1.37489713,145.47,145.43,4.15662961]
[1750802258769,1.37489713,145.47,145.42,4.15662961]
[1750802259063,5.53140324,145.48,145.43,4.15662961]
[1750802260318,5.53140324,145.48,145.43,11.03259643]
[1750802260776,1.37477363,145.48,145.43,11.03259643]
[1750802262665,4.15662961,145.48,145.43,11.03259643]
[1750802263174,5.53129453,145.49,145.43,11.03259643]
[1750802264871,1.37466492,145.49,145.44,4.15662961]
[1750802265272,10.29662961,145.5,145.42,6.8766332]
[1750802265273,11.67122459,145.5,145.45,4.15662961]
[1750802267493,11.67122459,145.5,145.46,4.15662961]
[1750802267494,7.51459498,145.5,145.46,4.15662961]
[1750802267682,7.51458374,145.5,145.46,4.15662961]
[1750802267993,20.86651815,145.52,145.48,4.15662961]
[1750802268770,1.3744103,145.52,145.48,4.15662961]
[1750802270788,1.37428708,145.53,145.48,4.15662961]
[1750802270992,5.53091669,145.53,145.48,4.15662961]
[1750802271196,1.37428708,145.53,145.49,4.15662961]
[1750802271398,7.59214937,145.54,145.5,4.15662961]
[1750802271399,1.37423286,145.54,145.5,4.15662961]
[1750802271776,1.37423286,145.54,145.51,4.15662961]
[1750802272601,7.5141368,145.55,145.51,4.15662961]
[1750802273383,7.5141368,145.55,145.51,11.02892377]
[1750802273696,1.37393666,145.57,145.53,4.15662961]
[1750802274503,1.37386057,145.58,145.53,4.15662961]
[1750802274813,1.37386057,145.58,145.53,11.02784544]
[1750802274983,1.37386057,145.58,145.54,4.15662961]
[1750802275326,1.37386057,145.58,145.53,11.02784544]
[1750802275688,1.37386057,145.58,145.54,4.15662961]
[1750802277605,1.37386057,145.58,145.55,4.15662961]
[1750802277899,1.37376387,145.59,145.55,4.15662961]
[1750802280609,7.4936648,145.6,145.55,11.02710624]
[1750802281611,6.12,145.6,145.56,4.15662961]
[1750802282116,6.12,145.6,145.57,4.15662961]
[1750802282793,1.3735721,145.61,145.57,4.15662961]
[1750802283717,5.53020171,145.61,145.56,4.15662961]
[1750802285813,5.53020171,145.61,145.56,92.85662961]
[1750802288896,1.3735721,145.61,145.56,92.85662961]
[1750802289389,1.3735721,145.61,145.57,1.6]
[1750802290015,1.3735721,145.61,145.56,88.7]
[1750802290016,1.3735721,145.61,145.56,92.85662961]
[1750802290217,5.53020171,145.61,145.56,92.85662961]
[1750802290589,23.3491738,145.64,145.57,0.68681937]
[1750802290789,1.37325067,145.64,145.59,4.15662961]
[1750802291595,5.52988028,145.64,145.59,4.15662961]
[1750802291801,1.37325067,145.64,145.6,4.15662961]
[1750802292196,1.37325067,145.64,145.6,6.48279482]
[1750802293920,1.37325067,145.64,145.61,1.6]
[1750802294591,1.37325067,145.64,145.6,6.48279482]
[1750802295116,1.37325067,145.64,145.59,6.86857277]
[1750802295117,1.37325067,145.64,145.59,26.0]
[1750802295306,6.48279482,145.63,145.57,6.48279482]
[1750802295512,6.48279482,145.6,145.55,6.48279482]
[1750802295692,18.64964886,145.62,145.54,6.48279482]
[1750802295896,6.48279482,145.59,145.54,6.48279482]
[1750802296922,6.48279482,145.59,145.52,88.7]
[1750802296923,6.48279482,145.57,145.52,6.48279482]
[1750802297220,6.48279482,145.57,145.5,11.84680449]
[1750802297423,4.80835279,145.58,145.5,11.84680449]
[1750802297424,4.80835279,145.58,145.51,32.48279482]
[1750802297598,6.48279482,145.57,145.52,6.48279482]
[1750802298222,1.37400384,145.56,145.52,6.48279482]
[1750802299524,1.37400384,145.56,145.53,1.6]
[1750802299725,1.37395277,145.57,145.53,8.08279482]
[1750802300615,6.48279482,145.59,145.53,14.95421757]
[1750802302001,1.37381508,145.58,145.53,14.95421757]
[1750802302202,1.37381508,145.58,145.54,6.48279482]
[1750802302517,1.37381508,145.58,145.53,8.08279482]
[1750802304027,6.48279482,145.59,145.53,8.08279482]
[1750802304929,6.48279482,145.58,145.53,8.08279482]
[1750802305304,6.48279482,145.57,145.53,1.6]
[1750802306628,1.37390945,145.57,145.53,1.6]
[1750802308126,1.37390945,145.57,145.53,8.08279482]
[1750802308329,1.37390945,145.57,145.53,14.95416225]
[1750802308818,1.37390945,145.57,145.52,95.18279482]
[1750802309017,7.85670427,145.57,145.52,95.18279482]
[1750802309219,7.85670427,145.57,145.52,88.7]
[1750802310139,7.85670427,145.57,145.48,95.18279482]
[1750802310140,6.48279482,145.53,145.48,95.18279482]
[1750802310323,6.48279482,145.53,145.48,121.18279482]
[1750802310815,1.37438152,145.52,145.48,95.18279482]
[1750802311226,1.37438152,145.52,145.48,121.18279482]
[1750802311934,1.37438152,145.52,145.49,6.48279482]
[1750802312234,1.37433118,145.53,145.49,6.48279482]
[1750802314436,1.37433118,145.53,145.5,6.48279482]
[1750802315047,1.37400384,145.56,145.51,6.48279482]
[1750802317222,1.37400384,145.56,145.52,6.48279482]
[1750802317917,1.37400384,145.56,145.51,6.48279482]
[1750802318130,7.45394239,145.57,145.53,6.48279482]
[1750802318518,6.08,145.57,145.54,6.48279482]
[1750802320022,6.08,145.57,145.54,13.35369296]
[1750802320647,6.08,145.57,145.55,6.48279482]
[1750802320939,1.37373941,145.59,145.55,6.48279482]
[1750802321521,7.85632685,145.61,145.55,6.48279482]
[1750802324544,6.48279482,145.6,145.55,6.48279482]
[1750802324743,1.37372072,145.59,145.55,6.48279482]
[1750802326545,6.48279482,145.6,145.55,6.48279482]
[1750802327033,6.48279482,145.6,145.55,95.18279482]
[1750802327627,1.37372072,145.59,145.55,95.18279482]
[1750802327944,7.85651554,145.59,145.55,88.7]
[1750802328139,6.48279482,145.58,145.55,88.7]
[1750802328339,6.48279482,145.58,145.53,95.18279482]
[1750802329131,1.37390945,145.57,145.53,95.18279482]
[1750802332357,7.85670427,145.57,145.52,6.48279482]
[1750802332647,6.48279482,145.56,145.51,95.18279482]
[1750802332947,6.48279482,145.56,145.52,1.6]
[1750802333455,6.48279482,145.55,145.52,1.6]
[1750802333842,6.48279482,145.54,145.52,1.6]
[1750802334459,1.37428708,145.53,145.52,1.6]
[1750802338953,1.37428708,145.53,145.49,6.48279482]
[1750802340554,1.37428708,145.53,145.47,32.87404337]
[1750802340555,6.48279482,145.52,145.47,95.18279482]
[1750802340760,6.48279482,145.52,145.47,6.48279482]
[1750802341548,1.37447598,145.51,145.47,6.48279482]
[1750802343039,6.48279482,145.5,145.45,1.5027]
[1750802343382,6.48279482,145.5,145.45,6.48279482]
[1750802343849,6.48279482,145.49,145.44,6.48279482]
[1750802344231,1.37475941,145.48,145.44,6.48279482]
[1750802345156,1.37475941,145.48,145.43,32.87615219]
[1750802345338,1.37475941,145.48,145.44,6.48279482]
[1750802349356,12.56279482,145.5,145.44,13.35840406]
[1750802349559,7.8570819,145.53,145.48,6.48279482]
[1750802351557,1.37428708,145.53,145.48,13.35651106]
[1750802351873,7.45423275,145.54,145.5,6.48279482]
[1750802355672,6.08,145.54,145.51,6.48279482]
[1750802356374,6.08,145.54,145.51,13.35512593]
[1750802356946,1.37413961,145.55,145.51,13.35512593]
[1750802357151,1.37413961,145.55,145.52,1.6]
[1750802357673,7.85670427,145.57,145.52,1.6]
[1750802358171,6.48279482,145.56,145.52,1.6]
[1750802359346,7.85665122,145.58,145.53,6.48279482]
[1750802359757,1.3738564,145.58,145.53,13.35418367]
[1750802360671,7.85665122,145.58,145.53,13.35418367]
[1750802363160,1.3738564,145.58,145.54,13.35369402]
[1750802364470,1.3738564,145.58,145.54,6.48279482]
[1750802365453,1.3738564,145.58,145.54,95.18279482]
[1750802370687,1.3738564,145.58,145.54,102.05373696]
[1750802379282,1.3738564,145.58,145.54,95.18279482]
[1750802384480,1.3738564,145.58,145.54,102.05374544]
[1750802386306,1.3738564,145.58,145.54,11.0234909]
[1750802392090,1.3738564,145.58,145.54,99.7234909]
[1750802395521,5.5263025,145.59,145.54,99.7234909]
[1750802396399,5.5263025,145.59,145.54,92.85254028]
[1750802396595,5.5263025,145.59,145.54,88.7]
[1750802396795,4.15254028,145.56,145.5,11.02508691]